fUSD/lending_fUSD_20251014
["ID","MTS","AMOUNT","RATE_DAILY","PERIOD"]
[391254795,1760440248331,-200.0,0.000214,7]
[391254796,1760440248340,-2000.0,0.000214,2]
[391254797,1760440248350,-677.54288556,0.00021418,2]
[391254798,1760440248360,-500.0,0.000215,7]
[391254799,1760440248370,-819.81063728,0.00021511,2]
[391254800,1760440248380,-677.54288556,0.00021539,2]
[391254801,1760440248389,-630.76725173,0.00021549,2]
[391254802,1760440248399,-506.43,0.00021579,2]
[391254803,1760440248408,-800.0,0.000216,7]
[391254804,1760440248418,-677.54288556,0.00021659,2]
[391254805,1760440248427,-4267.0,0.00021665,2]
[391254806,1760440248436,-1000.0,0.000217,7]
[391254807,1760440248445,-348.52445322,0.000217,2]
[391254808,1760440248456,-304.89,0.00021747,2]
[391254809,1760440248467,-500.0,0.0002175,2]
[391254810,1760440248476,-200.0,0.0002175,2]
[391254811,1760440248487,-166.66,0.00021753,2]
[391254812,1760440248496,-150.122,0.00021755,2]
[391254813,1760440248506,-3406.0,0.00021755,2]
[391254814,1760440248515,-1267.0,0.00021755,2]
[391254815,1760440248524,-2049.0,0.00021755,2]
[391254816,1760440248534,-571.0,0.00021755,2]
[391254817,1760440248543,-1546.0,0.00021755,2]
[391254818,1760440248553,-1309.0,0.00021755,2]
[391254819,1760440248562,-1373.81,0.00021762,2]
[391254820,1760440248571,-500.0,0.00021773,2]
[391254821,1760440248581,-397.58989848,0.00021773,2]
[391254822,1760440248590,-500.0,0.00021773,2]
[391254823,1760440248599,-158.69243376,0.00021779,2]
[391254824,1760440248609,-2599.8462,0.00021779,3]
[391254825,1760440248618,-301.16,0.00021779,2]
[391254826,1760440248627,-408.052538,0.0002178,2]
[391254827,1760440248636,-677.54288556,0.0002178,2]
[391254828,1760440248646,-154.6969221,0.0002178,2]
[391254829,1760440248656,-151.73,0.0002179,2]
[391254830,1760440248665,-1198.052,0.00021793,2]
[391254831,1760440248675,-25627.28120793,0.00021796,2]
[391254832,1760440248711,-6592.66342561,0.00021796,2]
[391254833,1760440248726,-1875.22461257,0.00021796,2]
[391254999,1760440837450,506.0,0.00027397,120]
[391255006,1760440908338,1500.0,0.00027397,120]
[391255008,1760440928839,500.0,0.00027397,120]
[391255009,1760440945658,500.0,0.00027397,120]
[391255011,1760440956441,500.0,0.00027397,120]
[391255012,1760440967392,500.0,0.00027397,120]
[391255020,1760441117920,500.0,0.00027397,120]
[391255031,1760441298867,1910.05673639,0.0001,2]
[391255032,1760441306801,221.40014923,0.0001,2]
[391255064,1760441431790,-547.4732,0.00014824,2]
[391255066,1760441431800,-201.02373801,0.00014899,2]
[391255068,1760441431809,-300.0,0.00014899,2]
[391255070,1760441431819,-1200.0,0.00014899,2]
[391255072,1760441431828,-300.0,0.00014899,2]
[391255074,1760441431838,-3390.22567382,0.000149,2]
[391255076,1760441431847,-363.60004922,0.000149,2]
[391255078,1760441431857,-610.54977273,0.000149,2]
[391255081,1760441431866,-332.65987042,0.000149,2]
[391255085,1760441431875,-300.0,0.00014962,2]
[391255089,1760441431884,-500.0,0.00014973,2]
[391255092,1760441431894,-172.70255236,0.00014973,2]
[391255096,1760441431903,-500.0,0.00014973,2]
[391255099,1760441431912,-500.0,0.00014973,2]
[391255102,1760441431922,-500.0,0.00014973,2]
[391255106,1760441431931,-500.0,0.00014973,2]
[391255107,1760441431941,-500.0,0.00014973,2]
[391255108,1760441431950,-500.0,0.00014973,2]
[391255109,1760441431959,-500.0,0.00014973,2]
[391255110,1760441431971,-3637.84,0.0001499,2]
[391255111,1760441431983,-3637.84,0.0001499,2]
[391255112,1760441431994,-210.29,0.0001499,2]
[391255113,1760441432003,-210.29,0.0001499,2]
[391255114,1760441432012,-210.29,0.0001499,2]
[391255115,1760441432023,-210.29,0.0001499,2]
[391255116,1760441432032,-210.29,0.0001499,2]
[391255117,1760441432042,-150.0,0.00014998,2]
[391255118,1760441432053,-178.39871338,0.00014999,2]
[391255119,1760441432062,-500.0,0.00014999,2]
[391255120,1760441432071,-175.75797264,0.00014999,2]
[391255121,1760441432080,-496.31405606,0.00014999,2]
[391255122,1760441432090,-500.0,0.00014999,2]
[391255123,1760441432099,-285.31451274,0.00014999,2]
[391255124,1760441432108,-314.014,0.00014999,2]
[391255125,1760441432117,-666.0,0.00014999,2]
[391255126,1760441432127,-32423.3205785,0.00015,2]
[391255127,1760441432142,-958.01119287,0.00015,2]
[391255128,1760441432166,-1832.494603,0.00015,2]
[391255129,1760441432177,-668.86823,0.00015,2]
[391255130,1760441432189,-323.64,0.00015,2]
[391255131,1760441432215,-668.02148785,0.00015,2]
[391255132,1760441432226,-2071.7809554,0.00015,2]
[391255133,1760441432237,-445.12116543,0.00015,2]
[391255134,1760441432248,-11036.79375757,0.00015,2]
[391255135,1760441432259,-7967.75039996,0.00015,2]
[391255136,1760441432278,-1304.85964664,0.00015,2]
[391255139,1760441437392,-1663.25974346,0.00015,2]
[391255140,1760441437686,-377.61823771,0.00015,2]
[391255141,1760441437700,-899.4,0.00015,2]
[391255301,1760441439452,-2233.2,0.00015,2]
[391255322,1760441439656,-566552.81991043,0.00015,2]
[391255324,1760441439672,-714724.539158,0.00015,2]
[391255327,1760441439688,-156584.26307949,0.00015,2]
[391255330,1760441439705,-15557.8234242,0.00015,2]
[391255332,1760441439721,-500.0,0.00015,2]
[391255335,1760441439736,-500.0,0.00015274,2]
[391255337,1760441439752,-560.92895725,0.00015521,2]
[391255340,1760441439765,-1000.0,0.00015521,2]
[391255343,1760441439782,-500.0,0.00015521,2]
[391255345,1760441439794,-500.0,0.00015521,2]
[391255347,1760441439805,-500.0,0.00015548,2]
[391255350,1760441439819,-3390.22567374,0.00015664,2]
[391255352,1760441439829,-150.99,0.00015664,2]
[391255354,1760441439839,-150.99,0.00015664,2]
[391255356,1760441439849,-500.0,0.00015822,2]
[391255358,1760441439858,-1500.0,0.00016068,2]
[391255360,1760441439867,-500.0,0.00016096,2]
[391255362,1760441439877,-255.0,0.00016123,2]
[391255364,1760441439887,-9999.99,0.00016124,2]
[391255366,1760441439896,-9999.99,0.00016124,2]
[391255368,1760441439905,-151.0,0.00016124,2]
[391255370,1760441439914,-151.0,0.00016124,2]
[391255372,1760441439924,-467.174739,0.00016124,2]
[391255432,1760441440488,-467.174739,0.00016124,2]
[391255434,1760441440509,-467.174739,0.00016124,2]
[391255439,1760441440547,-467.174739,0.00016124,2]
[391255442,1760441440579,-292.398873,0.00016124,2]
[391255445,1760441440592,-151.0,0.00016124,2]
[391255447,1760441440602,-151.0,0.00016124,2]
[391255448,1760441440611,-151.0,0.00016124,2]
[391255450,1760441440620,-151.0,0.00016124,2]
[391255452,1760441440630,-152.746893,0.00016124,2]
[391255454,1760441440639,-151.0,0.00016124,2]
[391255456,1760441440649,-161.64607498,0.00016124,2]
[391255458,1760441440658,-218.838331,0.00016124,2]
[391255460,1760441440667,-218.838331,0.00016124,2]
[391255461,1760441440677,-151.0,0.00016124,2]
[391255463,1760441440687,-151.0,0.00016124,2]
[391255465,1760441440696,-218.838331,0.00016124,2]
[391255467,1760441440706,-218.838331,0.00016124,2]
[391255469,1760441440718,-151.0,0.00016124,2]
[391255471,1760441440727,-151.0,0.00016124,2]
[391255473,1760441440736,-151.0,0.00016124,2]
[391255474,1760441440745,-151.0,0.00016124,2]
[391255476,1760441440755,-151.88386,0.00016124,2]
[391255478,1760441440764,-151.0,0.00016124,2]
[391255480,1760441440774,-151.0,0.00016124,2]
[391255482,1760441440783,-151.0,0.00016124,2]
[391255484,1760441440791,-363.60004922,0.00016233,2]
[391255485,1760441440800,-610.54977269,0.000163,2]
[391255487,1760441440810,-1951.35297579,0.00016307,2]
[391255489,1760441440820,-500.0,0.0001637,2]
[391255491,1760441440829,-305.15013849,0.00016376,2]
[391255493,1760441440839,-195.0,0.00016389,2]
[391255495,1760441440848,-380.72709589,0.00016389,2]
[391255497,1760441440858,-1200.0,0.00016389,2]
[391255499,1760441440867,-150.0,0.00016417,2]
[391255501,1760441440878,-300.0,0.00016417,2]
[391255503,1760441440887,-195.0,0.00016417,2]
[391255504,1760441440896,-302.57927306,0.00016417,2]
[391255506,1760441440906,-200.0,0.00016417,2]
[391255508,1760441440915,-718.11785638,0.00016417,2]
[391255510,1760441440924,-3390.22567374,0.00016429,2]
[391255512,1760441440933,-2000.0,0.00016616,2]
[391255514,1760441440942,-500.0,0.00016644,2]
[391255516,1760441440951,-500.0,0.00016918,2]
[391255517,1760441440961,-2000.0,0.00017164,2]
[391255519,1760441440970,-500.0,0.00017192,2]
[391255521,1760441440980,-3390.22567374,0.00017193,2]
[391255523,1760441440990,-433.0,0.00017338,2]
[391255525,1760441440999,-187.55,0.00017384,2]
[391255527,1760441441008,-500.0,0.00017466,2]
[391255529,1760441441018,-363.60004922,0.00017567,2]
[391255531,1760441441027,-610.54977269,0.000177,2]
[391255533,1760441441037,-500.0,0.0001774,2]
[391255535,1760441441046,-3390.22567374,0.00017958,2]
[391255537,1760441441055,-658.1816349,0.00017974,2]
[391255539,1760441441064,-537.24,0.00017985,2]
[391255541,1760441441073,-500.0,0.00018014,2]
[391255543,1760441441083,-150.0,0.00018074,2]
[391255545,1760441441092,-150.0,0.00018074,2]
[391255547,1760441441101,-150.0,0.00018074,2]
[391255548,1760441441111,-150.0,0.00018074,2]
[391255550,1760441441120,-150.00000001,0.00018074,2]
[391255552,1760441441129,-150.0,0.00018074,2]
[391255554,1760441441138,-152.01275841,0.00018074,2]
[391255556,1760441441147,-150.0,0.00018074,2]
[391255558,1760441441156,-150.0,0.00018074,2]
[391255560,1760441441165,-151.00000017,0.00018247,2]
[391255561,1760441441174,-500.0,0.00018288,2]
[391255563,1760441441183,-187.55,0.0001835,2]
[391255565,1760441441192,-160.0,0.00018377,2]
[391255567,1760441441200,-658.18163482,0.00018397,2]
[391255569,1760441441209,-172.0,0.00018413,2]
[391255571,1760441441219,-239.0,0.0001845,2]
[391255572,1760441441227,-221.0,0.00018487,2]
[391255574,1760441441236,-257.0,0.00018523,2]
[391255576,1760441441245,-243.0,0.0001856,2]
[391255578,1760441441253,-500.0,0.00018562,2]
[391255579,1760441441262,-221.0,0.00018597,2]
[391255581,1760441441271,-612.0,0.00018628,2]
[391255583,1760441441280,-158.0,0.00018633,2]
[391255585,1760441441290,-453.64851923,0.00018639,2]
[391255587,1760441441299,-494.0,0.0001867,2]
[391255589,1760441441308,-323.0,0.00018707,2]
[391255591,1760441441318,-3390.22567374,0.00018722,2]
[391255593,1760441441330,-666.0,0.00018739,3]
[391255595,1760441441343,-343.0,0.00018743,2]
[391255597,1760441441352,-150.0,0.00018743,2]
[391255599,1760441441361,-497.0,0.0001878,2]
[391255601,1760441441370,-151.73,0.000188,2]
[391255603,1760441441381,-284.0,0.00018817,2]
[391255605,1760441441390,-658.18163482,0.0001882,2]
[391255607,1760441441399,-500.0,0.00018836,2]
[391255608,1760441441408,-151.0,0.00018859,2]
[391255610,1760441441419,-255.953151,0.00018859,2]
[391255612,1760441441428,-300.0,0.00018861,2]
[391255614,1760441441438,-666.0,0.00018861,2]
[391255617,1760441441448,-363.60004922,0.000189,2]
[391255618,1760441441457,-500.0,0.00018973,2]
[391255620,1760441441466,-353.22781889,0.0001901,7]
[391255622,1760441441476,-150.0,0.00019054,2]
[391255624,1760441441487,-150.0,0.00019078,2]
[391255626,1760441441496,-610.54977269,0.000191,2]
[391255628,1760441441505,-500.0,0.0001911,2]
[391255630,1760441441514,-170.39889296,0.00019178,2]
[391255632,1760441441524,-200.0,0.00019178,2]
[391255634,1760441441533,-958.441,0.00019209,2]
[391255636,1760441441542,-658.18163482,0.00019243,2]
[391255638,1760441441552,-187.55,0.00019316,2]
[391255639,1760441441561,-500.0,0.00019384,2]
[391255641,1760441441571,-150.0,0.00019413,4]
[391255643,1760441441581,-3390.22567374,0.00019487,2]
[391255645,1760441441591,-200.0,0.00019488,2]
[391255647,1760441441600,-300.0,0.000195,2]
[391255649,1760441441610,-300.0,0.000195,2]
[391255651,1760441441620,-300.0,0.000195,2]
[391255653,1760441441630,-300.0,0.000195,2]
[391255655,1760441441639,-300.0,0.000195,2]
[391255657,1760441441648,-300.0,0.000195,2]
[391255659,1760441441658,-300.0,0.000195,2]
[391255661,1760441441668,-300.0,0.000195,2]
[391255663,1760441441677,-300.0,0.000195,2]
[391255664,1760441441688,-300.0,0.000195,2]
[391255666,1760441441697,-344.328921,0.000195,2]
[391255668,1760441441707,-166.66,0.00019525,2]
[391255670,1760441441718,-666.0,0.000196,2]
[391255672,1760441441727,-613.39,0.00019658,2]
[391255674,1760441441737,-658.18163482,0.00019666,2]
[391255676,1760441441746,-1749.0,0.0001967,2]
[391255678,1760441441755,-500.0,0.00019673,2]
[391255680,1760441441765,-500.0,0.00019673,2]
[391255682,1760441441775,-10000.0,0.000197,13]
[391255683,1760441441784,-10000.0,0.000197,13]
[391255685,1760441441793,-1232.0,0.0001971,2]
[391255687,1760441441803,-400.0,0.00019726,2]
[391255689,1760441441812,-1333.0,0.00019743,2]
[391255691,1760441441821,-527.0,0.00019749,2]
[391255693,1760441441829,-354.47954189,0.00019773,2]
[391255695,1760441441838,-500.0,0.00019773,2]
[391255697,1760441441847,-157.46121807,0.00019773,2]
[391255699,1760441441856,-1606.0,0.00019783,2]
[391255701,1760441441865,-1090.0,0.00019788,2]
[391255702,1760441441874,-10000.0,0.000198,13]
[391255704,1760441441883,-10000.0,0.000198,13]
[391255706,1760441441894,-4999.94845282,0.000198,13]
[391255708,1760441441903,-1069.0,0.00019822,2]
[391255710,1760441441912,-1058.0,0.00019862,2]
[391255712,1760441441922,-1728.0,0.00019944,2]
[391255714,1760441441931,-151.0,0.00019947,2]
[391255716,1760441441940,-105372.56852151,0.0001995,15]
[391255720,1760441441973,-1455.4501939,0.0001995,15]
[391255721,1760441441984,-14804.79854652,0.0001995,15]
[391255874,1760441443479,-11176.9344,0.0001995,15]
[391255877,1760441443491,-480.0,0.0001995,15]
[391255883,1760441443534,-62055.84903363,0.0001995,15]
[391255885,1760441443544,-151.0,0.0001995,7]
[391255887,1760441443553,-151.0,0.0001995,7]
[391255889,1760441443562,-151.0,0.0001995,7]
[391255891,1760441443573,-151.0,0.0001995,7]
[391255893,1760441443585,-151.0,0.0001995,7]
[391255895,1760441443594,-151.0,0.0001995,7]
[391255898,1760441443604,-152.723486,0.0001995,7]
[391255900,1760441443614,-151.0,0.0001995,7]
[391255902,1760441443623,-152.741192,0.0001995,7]
[391255904,1760441443632,-163.632472,0.0001995,7]
[391255906,1760441443642,-152.171878,0.0001995,7]
[391255908,1760441443651,-163.632472,0.0001995,7]
[391255910,1760441443661,-163.632472,0.0001995,7]
[391255936,1760441443898,-182.322601,0.0001995,7]
[391255938,1760441443908,-163.632472,0.0001995,7]
[391255941,1760441443921,-151.0,0.0001995,7]
[391255943,1760441443931,-151.0,0.0001995,7]
[391255945,1760441443941,-5658.690906,0.0001995,7]
[391255947,1760441443951,-5658.690906,0.0001995,7]
[391255949,1760441443965,-5658.690906,0.0001995,7]
[391255951,1760441443975,-5658.690906,0.0001995,7]
[391255953,1760441443986,-151.0,0.0001995,7]
[391255955,1760441443995,-151.0,0.0001995,7]
[391255957,1760441444005,-174.154898,0.0001995,7]
[391255959,1760441444014,-151.0,0.0001995,7]
[391255961,1760441444023,-151.0,0.0001995,7]
[391255963,1760441444032,-151.0,0.0001995,7]
[391255965,1760441444041,-151.0,0.0001995,7]
[391255967,1760441444051,-552.770006,0.0001995,7]
[391255970,1760441444060,-552.770006,0.0001995,7]
[391255973,1760441444071,-552.770006,0.0001995,7]
[391255976,1760441444081,-151.0,0.0001995,7]
[391255979,1760441444090,-552.770006,0.0001995,7]
[391255981,1760441444099,-151.0,0.0001995,7]
[391255983,1760441444108,-151.0,0.0001995,7]
[391255985,1760441444117,-151.0,0.0001995,7]
[391255987,1760441444128,-155.330919,0.0001995,7]
[391255989,1760441444137,-151.0,0.0001995,7]
[391255991,1760441444146,-1627.722093,0.0001995,7]
[391255993,1760441444155,-1627.722093,0.0001995,7]
[391255995,1760441444164,-1627.722093,0.0001995,7]
[391255997,1760441444174,-151.0,0.0001995,7]
[391255999,1760441444183,-1627.722093,0.0001995,7]
[391256001,1760441444193,-151.0,0.0001995,7]
[391256003,1760441444202,-151.0,0.0001995,7]
[391256005,1760441444211,-151.0,0.0001995,7]
[391256007,1760441444222,-151.0,0.0001995,7]
[391256009,1760441444231,-151.0,0.0001995,7]
[391256011,1760441444240,-151.0,0.0001995,7]
[391256013,1760441444249,-151.0,0.0001995,7]
[391256015,1760441444259,-151.0,0.0001995,7]
[391256017,1760441444269,-467.174739,0.0001995,7]
[391256019,1760441444278,-467.174739,0.0001995,7]
[391256021,1760441444287,-467.174739,0.0001995,7]
[391256023,1760441444297,-467.174739,0.0001995,7]
[391256025,1760441444305,-151.0,0.0001995,7]
[391256027,1760441444315,-248.98407,0.0001995,7]
[391256029,1760441444324,-152.171108,0.0001995,7]
[391256031,1760441444333,-218.838331,0.0001995,7]
[391256033,1760441444345,-218.838331,0.0001995,7]
[391256035,1760441444354,-151.0,0.0001995,7]
[391256037,1760441444363,-151.0,0.0001995,7]
[391256039,1760441444372,-218.838331,0.0001995,7]
[391256041,1760441444381,-218.838331,0.0001995,7]
[391256043,1760441444390,-151.0,0.0001995,7]
[391256045,1760441444399,-256.884777,0.0001995,7]
[391256047,1760441444409,-157.664249,0.0001995,7]
[391256049,1760441444417,-151.0,0.0001995,7]
[391256051,1760441444427,-151.913664,0.0001995,7]
[391256053,1760441444436,-500.0,0.00019973,2]
[391256055,1760441444445,-858.0,0.00019984,2]
[391256057,1760441444454,-151.73,0.0001999,2]
[391256059,1760441444464,-151.0,0.00019998,2]
[391256061,1760441444473,-666.0,0.00019999,2]
[391256063,1760441444482,-272.03502534,0.00019999,2]
[391256065,1760441444491,-159399.34505681,0.0002,2]
[391256067,1760441444500,-872.83571591,0.0002,30]
[391256069,1760441444509,-24187.48875061,0.0002,5]
[391256127,1760441445214,-570.14988775,0.0002,5]
[391256132,1760441445251,-2533.70273289,0.0002,5]
[391256134,1760441445262,-1549.68000004,0.0002,5]
[391256136,1760441445273,-333.4875037,0.0002,5]
[391256140,1760441445293,-281.10784996,0.0002,5]
[391256143,1760441445313,-2964.02716391,0.0002,5]
[391256237,1760441446412,-2552.92306728,0.0002,5]
[391256238,1760441446427,-616.91850101,0.0002,5]
[391256239,1760441446447,-4480.20457185,0.0002,5]
[391256240,1760441446692,-4146.4377723,0.0002,5]
[391256392,1760441751790,1600.0,0.00026794,120]
[391256402,1760442048212,209.01,0.0002609,120]
[391256407,1760442091089,150.0,0.00026027,120]
[391256408,1760442091264,150.0,0.00026027,120]
[391256409,1760442091430,151.65324234,0.00026027,120]
[391256411,1760442128707,1390.35986758,0.00027397,120]
[391256412,1760442157792,1002.21196392,0.00027397,120]
[391256413,1760442193679,800.0,0.00027397,120]
[391256414,1760442207981,1000.0,0.00027397,120]
[391256415,1760442222813,300.0,0.00027397,120]
[391256416,1760442243027,250.0,1e-06,2]
[391256417,1760442248782,1000.0,0.00027397,120]
[391256418,1760442252065,800.0,0.00027397,120]
[391256419,1760442272851,1000.0,0.00027397,120]
[391256420,1760442273082,1000.0,0.00027397,120]
[391256421,1760442273304,1000.0,0.00027397,120]
[391256422,1760442273523,1000.0,0.00027397,120]
[391256423,1760442273765,1000.0,0.00027397,120]
[391256424,1760442273985,1000.0,0.00027397,120]
[391256425,1760442274228,1000.0,0.00027397,120]
[391256426,1760442274487,1002.25337934,0.00027397,120]
[391256427,1760442289967,1000.0,0.00027397,120]
[391256428,1760442302740,800.0,0.00027397,120]
[391256429,1760442303182,1000.0,0.00027397,120]
[391256430,1760442303246,1519.0,0.00027397,120]
[391256431,1760442303288,3232.2017392,0.00027397,120]
[391256432,1760442303351,544.39,0.00027397,120]
[391256433,1760442303539,351.0,0.00020988,120]
[391256434,1760442304748,351.0,0.00022037,120]
[391256435,1760442306092,351.0,0.00023139,120]
[391256436,1760442307028,451.37,7.963e-05,2]
[391256437,1760442307109,451.37,8.382e-05,2]
[391256438,1760442307230,451.37,8.801e-05,2]
[391256439,1760442307394,351.0,0.00024296,120]
[391256440,1760442308349,451.37,9.22e-05,2]
[391256441,1760442308443,451.37,9.639e-05,2]
[391256442,1760442308519,451.37,0.00010058,2]
[391256443,1760442308613,451.37,0.00010477,2]
[391256444,1760442308710,451.37,0.00010896,2]
[391256445,1760442308754,26692.101186,7.945e-05,2]
[391256446,1760442308837,451.37,0.00011316,2]
[391256447,1760442308928,451.37,0.00011735,2]
[391256448,1760442308980,351.0,0.00025511,120]
[391256449,1760442309050,451.37,0.00012154,2]
[391256450,1760442309132,451.37,0.00012573,2]
[391256451,1760442310261,351.0,0.00026787,120]
[391256452,1760442310389,209.40743538,0.00024314,120]
[391256453,1760442311170,-451.37,0.00012992,2]
[391256455,1760442338778,170.93,0.00012361,2]
[391256456,1760442340142,1000.0,0.00027397,120]
[391256470,1760442368572,205.72,0.00027397,120]
[391256473,1760442381110,1000.0,0.00027397,120]
[391256476,1760442392859,200.0,0.00027397,120]
[391256478,1760442431311,1008.34537892,0.00027397,120]
[391256479,1760442431641,287.0,0.00027261,120]
[391256484,1760442533526,300.0,0.00027397,120]
[391256485,1760442580630,1928.43,0.00027397,120]
[391256486,1760442580856,1928.43,0.00027397,120]
[391256487,1760442581109,1928.43,0.00027397,120]
[391256488,1760442581357,1928.43,0.00027397,120]
[391256489,1760442581590,1928.43,0.00027397,120]
[391256490,1760442581824,1928.43,0.00027397,120]
[391256491,1760442582117,1928.43,0.00027397,120]
[391256492,1760442582450,1928.43,0.00027397,120]
[391256493,1760442582747,1928.43,0.00027397,120]
[391256494,1760442583011,1928.43,0.00027397,120]
[391256495,1760442583259,1928.43,0.00027397,120]
[391256496,1760442583875,1928.43,0.00027397,120]
[391256497,1760442584664,1928.43,0.00027397,120]
[391256498,1760442584858,1928.43,0.00027397,120]
[391256499,1760442584914,1928.43,0.00027397,120]
[391256500,1760442585181,1928.43,0.00027397,120]
[391256501,1760442585234,1928.43,0.00027397,120]
[391256502,1760442585286,1928.43,0.00027397,120]
[391256503,1760442585345,1928.43,0.00027397,120]
[391256504,1760442585493,1928.43,0.00027397,120]
[391256505,1760442585722,1928.43,0.00027397,120]
[391256506,1760442585951,1928.43,0.00027397,120]
[391256507,1760442586222,1928.43,0.00027397,120]
[391256508,1760442586466,1928.59613629,0.00027397,120]
[391256509,1760442603156,1000.0,0.00027397,120]
[391256510,1760442607952,176.0,0.00022432,120]
[391256511,1760442608539,176.0,0.00023554,120]
[391256512,1760442609801,176.0,0.00024731,120]
[391256513,1760442611070,176.0,0.00025968,120]
[391256514,1760442612362,176.0,0.00027266,120]
[391256523,1760442631622,-2343.76662,0.0001275,2]
[391256524,1760442631632,-2343.76662,0.0001275,2]
[391256525,1760442631641,-2343.76662,0.0001275,2]
[391256526,1760442631650,-2343.76662,0.0001275,2]
[391256527,1760442631660,-2343.76663,0.0001275,2]
[391256528,1760442631670,-397.83355062,0.00013311,2]
[391256529,1760442631679,-2198.204762,0.00013343,2]
[391256530,1760442631689,-300.0,0.0001341,2]
[391256531,1760442631699,-1200.0,0.0001341,2]
[391256532,1760442631708,-12100.36767738,0.00013411,2]
[391256533,1760442631789,-27148.80232109,0.00013411,2]
[391256534,1760442631890,-289703.44838889,0.00013411,2]
[391256535,1760442631909,-2105.70523871,0.00013411,2]
[391256554,1760442637526,-500.0,0.0001341,2]
[391256555,1760442637536,-549.72015892,0.0001341,2]
[391256556,1760442637546,-500.0,0.0001341,2]
[391256557,1760442637555,-315.902539,0.0001341,2]
[391256558,1760442637565,-244.53193848,0.0001341,2]
[391256559,1760442637575,-500.0,0.0001341,2]
[391256560,1760442637584,-500.0,0.0001341,2]
[391256561,1760442637594,-500.0,0.0001341,2]
[391256562,1760442637603,-500.0,0.0001341,2]
[391256563,1760442637613,-500.0,0.0001341,2]
[391256564,1760442637622,-357.61208541,0.0001341,2]
[391256565,1760442637632,-125498.43447213,0.00013411,2]
[391256566,1760442637791,-1120.47149072,0.00013411,2]
[391256826,1760442640297,-1147.9021496,0.00013411,2]
[391256831,1760442640333,-64609.79429862,0.00013411,2]
[391256848,1760442640499,-3069.9562402,0.00013411,2]
[391256849,1760442640510,-188219.65688066,0.00013411,2]
[391256850,1760442640520,-451.37,0.00013411,2]
[391256851,1760442640529,-2000.0,0.00013516,2]
[391256852,1760442640539,-735.21497803,0.00013621,2]
[391256853,1760442640548,-200.0,0.00013621,2]
[391256854,1760442640558,-2000.0,0.00013759,2]
[391256855,1760442640567,-2000.0,0.00013759,2]
[391256856,1760442640576,-451.37,0.0001383,2]
[391256857,1760442640586,-195.0,0.00013853,2]
[391256858,1760442640595,-195.0,0.00014152,2]
[391256860,1760442640604,-451.37,0.00014249,2]
[391256862,1760442640614,-305.15013849,0.00014601,2]
[391256864,1760442640623,-451.37,0.00014668,2]
[391256866,1760442640633,-282.0,0.000147,2]
[391256868,1760442640642,-1200.0,0.00014751,2]
[391256870,1760442640651,-9999.99,0.00014751,2]
[391256872,1760442640660,-308.59,0.00014751,2]
[391256874,1760442640669,-865.17,0.00014751,2]
[391256876,1760442640678,-1791.63,0.00014751,2]
[391256878,1760442640688,-1680.0,0.00014751,2]
[391256880,1760442640697,-150.0,0.00014751,2]
[391256882,1760442640706,-300.0,0.00014751,2]
[391256884,1760442640716,-2500.0,0.00014752,2]